bitfinex/quotes_SOLUSD_20220306
["timestamp","ask_amount","ask_price","bid_price","bid_amount"]
[1646605121959,1.5876717,86.044,86.043,1.7223214]
[1646605122159,3.16648648,86.068,86.043,1.7223214]
[1646605122360,1.58767259,86.044,86.043,1.7223214]
[1646605122560,3.16648648,86.068,86.043,1.7223214]
[1646605122763,1.58773355,86.044,86.043,1.7223214]
[1646605123162,3.16648648,86.069,86.043,1.7223214]
[1646605123363,3.16648648,86.073,86.05,17.4343]
[1646605124165,3.16648648,86.074,86.05,17.4343]
[1646605124364,3.16648648,86.074,86.051,1.32276724]
[1646605125067,3.16648648,86.073,86.051,1.32276724]
[1646605126266,3.16648648,86.072,86.051,1.32276724]
[1646605128068,3.16648648,86.073,86.051,1.32276724]
[1646605128968,3.16648648,86.071,86.043,1.32276724]
[1646605129569,3.16648648,86.072,86.043,1.32276724]
[1646605129770,3.16648648,86.071,86.043,1.32276724]
[1646605130373,3.16648648,86.072,86.05,17.4352]
[1646605130771,3.16648648,86.072,86.043,1.32276724]
[1646605130971,3.16648648,86.073,86.043,1.32276724]
[1646605131871,3.16648648,86.072,86.043,1.32276724]
[1646605132073,3.16648648,86.073,86.043,1.32276724]
[1646605132271,23.6488,86.087,86.043,1.32276724]
[1646605132272,3.16648648,86.072,86.043,1.32276724]
[1646605133071,3.16648648,86.073,86.043,1.32276724]
[1646605136475,3.16648648,86.073,86.05,17.4355]
[1646605136676,3.16648648,86.076,86.05,17.4355]
[1646605136875,3.16648648,86.076,86.051,1.32276724]
[1646605138176,3.16648648,86.075,86.051,1.32276724]
[1646605138377,3.16648648,86.076,86.051,1.32276724]
[1646605138799,3.16648648,86.075,86.051,1.32276724]
[1646605139300,3.16648648,86.074,86.051,1.32276724]
[1646605141704,3.16648648,86.074,86.043,1.32276724]
[1646605141903,3.16648648,86.073,86.043,1.32276724]
[1646605142304,3.16648648,86.072,86.043,1.32276724]
[1646605143504,3.16648648,86.071,86.043,1.32276724]
[1646605143906,3.16648648,86.072,86.043,1.32276724]
[1646605144807,24.7772,86.087,86.043,1.32276724]
[1646605144808,3.16648648,86.071,86.043,1.32276724]
[1646605148213,3.16648648,86.071,86.05,17.4358]
[1646605148410,24.7772,86.087,86.05,23.7858]
[1646605148411,3.16648648,86.072,86.05,23.7858]
[1646605148611,3.16648648,86.073,86.051,1.32276724]
[1646605149412,4.75338019,86.097,86.06,17.4338]
[1646605149413,3.16648648,86.075,86.06,17.4338]
[1646605149612,3.16648648,86.09,86.06,17.4338]
[1646605149812,3.16648648,86.094,86.061,24.5373]
[1646605150012,3.16648648,86.095,86.061,24.5373]
[1646605150211,3.16648648,86.097,86.061,24.5373]
[1646605150411,3.16648648,86.097,86.07,17.4292]
[1646605150611,3.16648648,86.097,86.07,25.3292]
[1646605150815,3.16648648,86.097,86.07,25.2292]
[1646605151111,3.16648648,86.109,86.07,25.2292]
[1646605151312,3.16648648,86.109,86.071,24.6508]
[1646605151511,3.16648648,86.109,86.08,17.4275]
[1646605151712,3.16648648,86.106,86.081,24.6508]
[1646605152311,3.16648648,86.108,86.081,24.6508]
[1646605152613,3.16648648,86.121,86.09,17.4271]
[1646605152812,3.16648648,86.122,86.09,26.7371]
[1646605153014,4.75338019,86.132,86.09,26.7371]
[1646605153015,3.16648648,86.123,86.091,24.6508]
[1646605154215,3.16648648,86.124,86.091,24.6508]
[1646605154515,3.16648648,86.122,86.091,24.6508]
[1646605155117,3.16648648,86.127,86.092,1.32276724]
[1646605155319,3.16648648,86.128,86.092,1.32276724]
[1646605156023,3.16648648,86.128,86.1,17.4259]
[1646605156218,9.51688285,86.131,86.1,17.4259]
[1646605157120,6.35039637,86.131,86.1,17.4259]
[1646605158219,6.35039637,86.131,86.101,1.32276724]
[1646605160723,3.16648648,86.136,86.101,1.32276724]
[1646605160922,3.16648648,86.139,86.101,1.32276724]
[1646605161125,6.34978926,86.135,86.101,1.32276724]
[1646605161322,6.34978926,86.138,86.101,1.32276724]
[1646605161525,3.16648648,86.142,86.101,1.32276724]
[1646605161824,64.8842181,86.137,86.101,1.32276724]
[1646605162023,6.34981501,86.136,86.101,1.32276724]
[1646605163225,64.8842181,86.137,86.101,1.32276724]
[1646605164224,3.16648648,86.145,86.101,1.32276724]
[1646605164728,2.66648648,86.145,86.101,1.32276724]
[1646605165033,6.34971756,86.144,86.101,1.32276724]
[1646605165226,51.42871314,86.146,86.101,1.32276724]
[1646605165626,6.34971756,86.145,86.101,1.32276724]
[1646605168733,6.34971756,86.145,86.101,24.50586724]
[1646605175455,6.34971756,86.145,86.101,1.32276724]
[1646605177158,6.34971756,86.145,86.081,24.9013]
[1646605177360,6.34971756,86.145,86.082,1.32276724]
[1646605178162,6.34971756,86.145,86.1,17.4261]
[1646605180066,6.34971756,86.145,86.101,1.32276724]
[1646605182066,6.34971756,86.145,86.101,24.44546724]
[1646605188571,6.34971756,86.145,86.101,1.32276724]
[1646605188773,6.34971756,86.145,86.102,23.2343]
[1646605189475,6.34971756,86.145,86.103,1.32276724]
[1646605196083,17.4286,86.14,86.103,1.32276724]
[1646605196481,6.34971756,86.139,86.103,1.32276724]
[1646605196681,59.06598893,86.139,86.103,1.32276724]
[1646605196882,59.06598893,86.139,86.063,24.5506]
[1646605196883,34.06659304,86.138,86.064,1.32276724]
[1646605197085,6.34971756,86.137,86.064,1.32276724]
[1646605197282,121.05338019,86.129,86.064,1.32276724]
[1646605197483,6.34971756,86.128,86.064,1.32276724]
[1646605197682,116.3,86.127,86.064,1.32276724]
[1646605198082,116.3,86.125,86.064,1.32276724]
[1646605198282,49.21594952,86.109,86.064,1.32276724]
[1646605198482,6.34971756,86.108,86.064,1.32276724]
[1646605198885,118.77176371,86.107,86.064,1.32276724]
[1646605199085,116.3,86.105,86.064,1.32276724]
[1646605199284,116.3,86.099,86.064,1.32276724]
[1646605199483,116.3,86.097,86.064,1.32276724]
[1646605199686,1.1409897,86.063,85.994,47.5968]
[1646605199885,59.4554364,86.062,85.994,47.5968]
[1646605200985,59.4554364,86.062,86.01,17.4439]
[1646605207391,17.4456,86.06,86.0,17.4475]
[1646605208991,17.4456,86.06,86.012,0.71389822]
[1646605212792,118.77176371,86.059,86.012,0.71389822]
[1646605212995,17.4504,86.05,86.012,0.71389822]
[1646605213393,17.4504,86.05,86.013,0.06748984]
[1646605213594,17.4504,86.05,86.014,1.07026974]
[1646605216016,17.4504,86.05,86.015,0.06748984]
[1646605218722,17.4504,86.05,86.016,1.06969217]
[1646605221123,17.4503,86.04,86.016,1.06969217]
[1646605222225,17.4503,86.04,86.017,0.06748984]
[1646605224226,17.4503,86.04,86.018,1.06911463]
[1646605225429,17.4503,86.04,86.019,0.06748984]
[1646605225629,0.85280385,86.017,85.98,17.4511]
[1646605238544,0.85280385,86.017,85.981,0.71024353]
[1646605238742,0.85280385,86.017,85.99,17.4481]
[1646605238942,0.85280385,86.017,85.991,24.4998]
[1646605240142,0.85280385,86.017,86.0,17.4471]
[1646605241644,0.85280385,86.017,86.001,0.71024353]
[1646605243146,1.5865193,86.014,86.001,0.71024353]
[1646605243747,1.5865193,86.015,86.001,0.71024353]
[1646605244346,1.5865193,86.016,86.001,0.71024353]
[1646605245645,0.85280385,86.017,86.001,0.71024353]
[1646605246248,1.5865193,86.016,86.001,0.71024353]
[1646605246545,2.43932315,86.017,86.001,0.71024353]
[1646605247645,2.43932315,86.017,86.002,5.813]
[1646605247947,0.85280385,86.017,86.002,5.813]
[1646605248144,0.85280385,86.017,86.003,0.71024353]
[1646605248948,2.43932315,86.017,86.003,0.71024353]
[1646605249848,0.85280385,86.017,86.003,0.71024353]
[1646605250248,0.85280385,86.017,86.004,5.813]
[1646605251148,0.85280385,86.017,86.005,0.71024353]
[1646605251951,1.5865193,86.025,86.005,0.71024353]
[1646605252152,6.35526903,86.062,86.01,17.4357]
[1646605252350,4.75338019,86.091,86.01,31.3757]
[1646605252554,4.75338019,86.091,86.011,23.573]
[1646605252750,6.35526903,86.098,86.011,26.40913526]
[1646605252950,47.28549947,86.097,86.012,27.96400454]
[1646605253149,6.35526903,86.096,86.03,17.4347]
[1646605253349,6.35526903,86.096,86.031,23.573]
[1646605254249,6.35526903,86.096,86.05,17.4366]
[1646605254450,6.35526903,86.096,86.051,23.573]
[1646605254658,3.16568951,86.086,86.051,23.573]
[1646605254857,3.16568951,86.085,86.051,23.573]
[1646605255280,3.16568951,86.086,86.051,23.573]
[1646605255480,3.16568951,86.09,86.051,23.573]
[1646605257381,3.16568951,86.09,86.052,0.71024353]
[1646605257982,3.16568951,86.093,86.052,0.71024353]
[1646605258681,3.16568951,86.092,86.052,0.71024353]
[1646605259284,3.16568951,86.093,86.052,0.71024353]
[1646605259882,3.16568951,86.095,86.052,0.71024353]
[1646605261483,3.16568951,86.094,86.052,0.71024353]
[1646605261883,6.35526903,86.093,86.052,0.71024353]
[1646605262284,3.16568951,86.096,86.052,0.71024353]
[1646605262285,3.16568951,86.095,86.052,0.71024353]
[1646605262484,6.35526903,86.092,86.052,0.71024353]
[1646605262784,6.35526903,86.094,86.052,0.71024353]
[1646605262984,6.35526903,86.093,86.052,0.71024353]
[1646605263183,9.52095854,86.096,86.052,0.71024353]
[1646605263884,9.52095854,86.096,86.052,6.51824353]
[1646605264688,9.52095854,86.096,86.052,0.71024353]
[1646605264986,6.35526903,86.096,86.052,0.71024353]
[1646605265587,6.35526903,86.096,86.053,5.808]
[1646605265988,6.35526903,86.096,86.054,0.71024353]
[1646605266987,3.16568951,86.097,86.06,17.4354]
[1646605268888,3.16568951,86.098,86.06,17.4354]
[1646605269287,3.16568951,86.098,86.061,0.71024353]
[1646605269687,3.16568951,86.097,86.061,0.71024353]
[1646605270089,3.16568951,86.098,86.061,0.71024353]
[1646605271188,3.16568951,86.097,86.061,0.71024353]
[1646605271688,3.16568951,86.096,86.061,0.71024353]
[1646605273290,3.16568951,86.095,86.061,0.71024353]
[1646605273890,3.16568951,86.094,86.061,0.71024353]
[1646605274091,3.16568951,86.093,86.061,0.71024353]
[1646605274291,3.16568951,86.095,86.061,0.71024353]
[1646605274491,6.35526903,86.092,86.061,0.71024353]
[1646605274693,3.16568951,86.094,86.061,0.71024353]
[1646605274892,3.16568951,86.095,86.061,0.71024353]
[1646605275102,3.16568951,86.096,86.07,17.4336]
[1646605275294,3.16568951,86.102,86.07,17.4336]
[1646605275693,3.16568951,86.102,86.061,0.71024353]
[1646605275894,3.16568951,86.101,86.071,0.71024353]
[1646605276094,3.16568951,86.098,86.071,0.71024353]
[1646605276294,3.16568951,86.101,86.071,0.71024353]
[1646605277700,3.16568951,86.098,86.071,0.71024353]
[1646605279599,2.94232595,86.105,86.071,0.71024353]
[1646605279800,2.94232595,86.119,86.073,0.6359789]
[1646605280001,3.16000878,86.152,86.075,0.67189301]
[1646605280207,3.16000878,86.169,86.091,0.67189301]
[1646605280402,3.16000878,86.174,86.101,0.67189301]
[1646605280602,53.41065526,86.173,86.102,5.804]
[1646605280802,53.41065526,86.173,86.12,17.4189]
[1646605281001,53.41065526,86.173,86.121,5.804]
[1646605281223,3.16000878,86.179,86.121,5.804]
[1646605281600,3.16000878,86.179,86.122,22.7354]
[1646605281801,23.7745,86.192,86.122,22.7354]
[1646605281802,3.16000878,86.177,86.13,17.4194]
[1646605282202,3.16000878,86.188,86.131,5.803]
[1646605282402,58.82857874,86.177,86.131,5.803]
[1646605282806,58.82857874,86.177,86.132,0.71024353]
[1646605283005,58.82857874,86.177,86.133,5.803]
[1646605284807,58.82857874,86.177,86.14,17.4186]
[1646605285613,58.82857874,86.177,86.132,0.71024353]
[1646605286414,58.82857874,86.177,86.141,0.71024353]
[1646605289034,58.82857874,86.177,86.131,6.51324353]
[1646605289932,58.82857874,86.177,86.14,17.4186]
[1646605291137,23.7745,86.192,86.14,17.4186]
[1646605291737,23.7745,86.192,86.14,31.3586]
[1646605291939,23.7745,86.192,86.141,5.801]
[1646605292239,46.73388642,86.191,86.141,0.71024353]
[1646605292839,46.73388642,86.191,86.142,5.801]
[1646605296146,46.73388642,86.191,86.143,0.71024353]
[1646605296343,46.73388642,86.191,86.144,5.801]
[1646605297845,113.4,86.199,86.143,0.71024353]
[1646605298245,113.4,86.199,86.15,17.4164]
[1646605298846,61.40733984,86.198,86.15,17.4164]
[1646605301648,61.40733984,86.198,86.151,5.801]
[1646605301849,61.40733984,86.198,86.151,6.51124353]
[1646605303054,61.40733984,86.198,86.151,0.71024353]
[1646605303453,61.40733984,86.198,86.16,17.4149]
[1646605304253,3.16000878,86.205,86.16,17.4149]
[1646605304454,3.16000878,86.205,86.161,5.801]
[1646605304653,17.5945,86.205,86.17,17.4132]
[1646605305155,17.5945,86.205,86.171,0.71024353]
[1646605305357,52.17672172,86.204,86.171,0.71024353]
[1646605306060,3.16000878,86.203,86.171,0.71024353]
[1646605306356,55.3367305,86.204,86.171,0.71024353]
[1646605306758,3.16000878,86.203,86.171,0.71024353]
[1646605307657,55.3367305,86.204,86.171,0.71024353]
[1646605308060,3.16000878,86.193,86.171,0.71024353]
[1646605308258,3.16000878,86.192,86.171,0.71024353]
[1646605309358,3.16000878,86.193,86.171,0.71024353]
[1646605309558,3.16000878,86.192,86.171,0.71024353]
[1646605309758,3.16000878,86.19,86.171,0.71024353]
[1646605309958,3.16000878,86.185,86.162,0.71024353]
[1646605310563,3.16000878,86.184,86.162,0.71024353]
[1646605310760,3.16000878,86.185,86.162,0.71024353]
[1646605310959,3.16000878,86.186,86.162,0.71024353]
[1646605311365,3.16000878,86.184,86.162,0.71024353]
[1646605311762,3.16000878,86.185,86.162,0.71024353]
[1646605312160,3.16000878,86.186,86.162,0.71024353]
[1646605313163,3.16000878,86.186,86.161,0.71024353]
[1646605313360,3.16000878,86.185,86.161,0.71024353]
[1646605314060,3.16000878,86.187,86.161,0.71024353]
[1646605314261,52.17672172,86.204,86.161,0.71024353]
[1646605314262,3.16000878,86.186,86.161,0.71024353]
[1646605315160,3.16000878,86.185,86.161,0.71024353]
[1646605315359,3.16000878,86.187,86.161,0.71024353]
[1646605315561,3.16000878,86.185,86.161,0.71024353]
[1646605316060,3.16000878,86.187,86.161,0.71024353]
[1646605316660,3.16000878,86.185,86.161,0.71024353]
[1646605317860,3.16000878,86.186,86.161,0.71024353]
[1646605318064,3.16000878,86.185,86.161,0.71024353]
[1646605319862,3.16000878,86.186,86.161,0.71024353]
[1646605320064,3.16000878,86.185,86.161,0.71024353]
[1646605321961,3.16000878,86.186,86.161,0.71024353]
[1646605322566,3.16000878,86.185,86.161,0.71024353]
[1646605322766,3.16000878,86.184,86.161,0.71024353]
[1646605323167,3.16000878,86.186,86.161,0.71024353]
[1646605324173,3.16000878,86.187,86.161,0.71024353]
[1646605324970,3.16000878,86.185,86.161,0.71024353]
[1646605325171,3.16000878,86.187,86.161,0.71024353]
[1646605327072,3.16000878,86.188,86.161,0.71024353]
[1646605327871,3.16000878,86.187,86.161,0.71024353]
[1646605328074,3.16000878,86.186,86.161,0.71024353]
[1646605328471,3.16000878,86.185,86.161,0.71024353]
[1646605329377,3.16000878,86.185,86.152,0.71024353]
[1646605329674,3.16000878,86.184,86.152,0.71024353]
[1646605330392,3.16000878,86.183,86.152,0.71024353]
[1646605331794,3.16000878,86.181,86.152,0.71024353]
[1646605335297,3.16000878,86.18,86.152,0.71024353]
[1646605335500,3.16000878,86.183,86.152,0.71024353]
[1646605335698,3.16000878,86.183,86.152,24.40114353]
[1646605335900,3.16000878,86.184,86.152,24.40114353]
[1646605336098,3.16000878,86.183,86.152,24.40114353]
[1646605336500,3.16000878,86.186,86.152,24.40114353]
[1646605337101,3.16000878,86.187,86.152,24.40114353]
[1646605337702,3.16000878,86.185,86.152,24.40114353]
[1646605337900,3.16000878,86.184,86.152,24.40114353]
[1646605338601,3.16000878,86.184,86.152,0.71024353]
[1646605338802,3.16000878,86.175,86.152,0.71024353]
[1646605339002,3.16000878,86.162,86.152,0.71024353]
[1646605339202,3.16000878,86.16,86.152,0.71024353]
[1646605339400,2.07366539,86.161,86.152,0.71024353]
[1646605339802,5.23367417,86.161,86.102,0.71024353]
[1646605340202,3.16000878,86.16,86.102,0.71024353]
[1646605340805,3.16000878,86.159,86.102,0.71024353]
[1646605341006,3.16000878,86.159,86.11,17.4254]
[1646605341605,3.16000878,86.16,86.11,17.4254]
[1646605342112,17.4264,86.15,86.11,17.4254]
[1646605342607,17.4264,86.15,86.102,0.71024353]
[1646605342806,17.4264,86.15,86.111,0.71024353]
[1646605344210,116.3,86.149,86.111,0.71024353]
[1646605344613,55.09543297,86.139,86.111,0.71024353]
[1646605345613,17.4318,86.13,86.111,0.71024353]
[1646605346013,17.4318,86.13,86.081,0.71024353]
[1646605347517,26.7218,86.13,86.081,0.71024353]
[1646605348218,43.8373,86.13,86.081,0.71024353]
[1646605348418,116.3,86.129,86.081,0.71024353]
[1646605348619,17.4351,86.12,86.081,0.71024353]
[1646605349242,17.4351,86.12,86.061,0.71024353]
[1646605350246,116.3,86.119,86.061,0.71024353]
[1646605350446,116.3,86.109,86.061,0.71024353]
[1646605350650,54.16481735,86.108,86.061,0.71024353]
[1646605351046,116.3,86.107,86.061,0.71024353]
[1646605351245,54.16481735,86.108,86.061,0.71024353]
[1646605351447,17.4406,86.1,86.061,0.71024353]
[1646605352247,17.4406,86.1,86.042,0.71024353]
[1646605357751,23.1145,86.109,86.042,0.71024353]
[1646605358551,23.1145,86.109,86.05,17.4369]
[1646605358752,23.1145,86.109,86.051,24.6431]
[1646605359152,23.1145,86.109,86.051,25.35334353]
[1646605361558,23.1145,86.109,86.06,17.4347]
[1646605361757,23.1145,86.109,86.061,23.3216]
[1646605362159,23.1145,86.109,86.061,24.03184353]
[1646605372166,1.5798953,86.095,86.061,24.03184353]
[1646605372367,1.5798953,86.093,86.061,24.03184353]
[1646605374269,1.5798953,86.087,86.061,24.03184353]
[1646605376099,1.5798953,86.082,86.061,24.03184353]
[1646605377295,1.5798953,86.081,86.061,24.03184353]
[1646605378596,1.5798953,86.078,86.061,24.03184353]
[1646605383104,1.5798953,86.077,86.061,24.03184353]
[1646605387604,1.5798953,86.078,86.061,24.03184353]
[1646605389206,3.16000878,86.107,86.061,24.03184353]
[1646605389405,3.16000878,86.107,86.07,17.4273]
[1646605389607,3.16000878,86.12,86.071,23.8467]
[1646605389807,3.16000878,86.121,86.071,24.55694353]
[1646605390205,3.16000878,86.123,86.071,24.55694353]
[1646605390405,9.51051927,86.124,86.08,17.4277]
[1646605390607,6.35051049,86.124,86.08,31.3677]
[1646605391407,3.16000878,86.136,86.081,23.8467]
[1646605391707,3.16000878,86.146,86.09,17.4232]
[1646605391907,3.16000878,86.147,86.1,13.94]
[1646605392106,3.16000878,86.146,86.101,23.8467]
[1646605392306,55.59071068,86.145,86.101,23.8467]
[1646605392509,6.35051049,86.144,86.101,23.8467]
[1646605392812,6.35051049,86.144,86.102,0.71024353]
[1646605393210,55.59071068,86.145,86.11,17.4239]
[1646605393612,55.59071068,86.145,86.11,31.3639]
[1646605396016,55.59071068,86.145,86.111,0.71024353]
[1646605398922,3.16000878,86.168,86.12,17.4225]
[1646605399119,3.16000878,86.168,86.121,24.2343]
[1646605399318,6.34849117,86.169,86.121,24.94454353]
[1646605399921,46.10681977,86.168,86.121,24.94454353]
[1646605400119,6.34849117,86.167,86.121,24.94454353]
[1646605403428,46.10681977,86.168,86.121,24.94454353]
[1646605406535,17.4243,86.16,86.121,24.94454353]
[1646605407435,46.10681977,86.168,86.121,24.94454353]
[1646605410452,17.4245,86.16,86.121,24.94454353]
[1646605412657,46.10681977,86.168,86.121,24.94454353]
[1646605413056,70.4853764,86.168,86.121,24.94454353]
[1646605413656,6.34832908,86.167,86.121,24.94454353]
[1646605415058,3.16000878,86.181,86.121,24.94454353]
[1646605415259,3.16000878,86.181,86.121,31.78454353]
[1646605415459,3.16000878,86.178,86.121,31.78454353]
[1646605415660,3.16000878,86.178,86.13,17.4203]
[1646605415860,3.16000878,86.178,86.131,24.7112]
[1646605416663,3.16000878,86.179,86.131,24.7112]
[1646605416866,3.16000878,86.179,86.131,25.42144353]
[1646605417263,3.16000878,86.175,86.131,25.42144353]
[1646605417863,3.16000878,86.174,86.131,25.42144353]
[1646605419369,3.16000878,86.166,86.131,25.42144353]
[1646605421369,3.16000878,86.163,86.131,25.42144353]
[1646605422969,3.16000878,86.164,86.131,25.42144353]
[1646605423168,6.34832908,86.162,86.131,25.42144353]
[1646605423368,9.50833786,86.163,86.131,25.42144353]
[1646605423571,3.16000878,86.163,86.131,25.42144353]
[1646605424869,3.16000878,86.162,86.131,25.42144353]
[1646605425069,9.50833786,86.162,86.131,25.42144353]
[1646605425269,3.16000878,86.162,86.131,25.42144353]
[1646605426170,3.16000878,86.163,86.131,25.42144353]
[1646605426369,6.34832908,86.161,86.131,25.42144353]
[1646605426571,3.16000878,86.164,86.14,17.4183]
[1646605426770,3.16000878,86.171,86.14,31.3583]
[1646605426974,3.16000878,86.171,86.141,24.15364353]
[1646605427771,3.16000878,86.172,86.141,24.15364353]
[1646605428572,3.16000878,86.174,86.141,24.15364353]
[1646605428975,3.16000878,86.175,86.141,24.15364353]
[1646605429374,3.16000878,86.174,86.141,24.15364353]
[1646605429578,9.50833786,86.174,86.141,24.15364353]
[1646605429775,3.16000878,86.175,86.141,24.15364353]
[1646605431580,3.16000878,86.177,86.141,24.15364353]
[1646605431983,6.34832908,86.181,86.141,24.15364353]
[1646605431984,3.16000878,86.178,86.141,24.15364353]
[1646605432185,3.16000878,86.179,86.141,24.15364353]
[1646605432583,3.16000878,86.178,86.141,24.15364353]
[1646605432783,9.50833786,86.178,86.141,24.15364353]
[1646605432983,3.16000878,86.179,86.141,24.15364353]
[1646605433384,3.16000878,86.178,86.141,24.15364353]
[1646605433785,3.16000878,86.177,86.141,24.15364353]
[1646605433986,3.16000878,86.176,86.141,24.15364353]
[1646605434586,3.16000878,86.178,86.141,24.15364353]
[1646605435605,9.50833786,86.177,86.141,24.15364353]
[1646605436006,3.16000878,86.178,86.141,24.15364353]
[1646605436206,6.34832908,86.176,86.141,24.15364353]
[1646605436407,3.16000878,86.178,86.141,24.15364353]
[1646605436808,3.16000878,86.176,86.141,24.15364353]
[1646605437207,3.16000878,86.176,86.1,23.30590019]
[1646605437516,51.45644455,86.182,78.554,0.03812]
[1646605437517,3.16000878,86.166,86.09,13.94]
[1646605437708,3.16000878,86.157,86.058,46.1911]
[1646605437911,3.16000878,86.152,86.07,13.94]
[1646605438110,3.16000878,86.148,86.071,23.5988]
[1646605438310,22.8773,86.147,86.071,23.5988]
[1646605438513,6.34832908,86.146,86.071,23.5988]
[1646605438710,9.50833786,86.146,86.071,23.5988]
[1646605438910,3.16000878,86.145,86.071,23.5988]
[1646605439111,3.16000878,86.14,86.071,23.5988]
[1646605439511,45.70570754,86.129,86.071,23.5988]
[1646605440810,17.4328,86.12,86.071,23.5988]
[1646605455333,45.70570754,86.129,86.071,23.5988]
[1646605455537,45.70570754,86.129,86.08,17.4306]
[1646605455834,45.70570754,86.129,86.071,23.5988]
[1646605456636,17.4324,86.12,86.071,23.5988]
[1646605458438,24.7844,86.128,86.08,17.4303]
[1646605458734,24.7844,86.128,86.081,22.858]
[1646605462438,17.4323,86.12,86.081,22.858]
[1646605465443,17.4323,86.12,86.06,13.94]
[1646605465642,17.4323,86.12,86.061,24.5698]
[1646605467346,45.70570754,86.129,86.07,17.4319]
[1646605467546,45.70570754,86.129,86.071,24.8997]
[1646605467945,6.35016416,86.128,86.071,24.8997]
[1646605470052,17.4325,86.12,86.071,24.8997]
[1646605471368,26.43330878,86.128,86.08,17.4306]
[1646605471557,6.35045662,86.127,86.081,23.6248]
[1646605472158,6.35045662,86.127,86.081,22.2989363]
[1646605473659,17.4326,86.12,86.07,17.4321]
[1646605473862,17.4326,86.12,86.061,22.7113]
[1646605474258,6.35077817,86.119,86.061,22.7113]
[1646605480179,17.4344,86.11,86.061,22.7113]
[1646605481682,24.6126,86.118,86.061,22.7113]
[1646605481888,6.35075011,86.117,86.061,22.7113]
[1646605485590,24.6126,86.118,86.07,17.4322]
[1646605485991,45.70570754,86.129,86.07,17.4322]
[1646605485992,3.16000878,86.126,86.07,17.4322]
[1646605486192,3.16000878,86.126,86.071,24.5494]
[1646605486391,3.16000878,86.124,86.071,24.5494]
[1646605486590,3.16000878,86.122,86.071,24.5494]
[1646605487290,3.16000878,86.121,86.071,24.5494]
[1646605487491,3.16000878,86.122,86.071,24.5494]
[1646605487892,3.16000878,86.121,86.071,24.5494]
[1646605488393,3.16000878,86.122,86.071,24.5494]
[1646605489393,17.4323,86.12,86.071,24.5494]
[1646605489696,6.35063959,86.119,86.071,24.5494]
[1646605497616,3.16000878,86.124,86.08,17.4307]
[1646605497809,3.16000878,86.124,86.081,23.0336]
[1646605500812,3.16000878,86.123,86.081,23.0336]
[1646605502833,3.16000878,86.124,86.081,23.0336]
[1646605503934,3.16000878,86.123,86.081,23.0336]
[1646605504135,9.51064837,86.123,86.081,23.0336]
[1646605504335,3.16000878,86.123,86.081,23.0336]
[1646605506037,3.16000878,86.123,86.09,17.429]
[1646605506236,3.16000878,86.123,86.081,23.0336]
[1646605507241,3.16000878,86.123,86.09,17.4291]
[1646605507440,3.16000878,86.124,86.09,17.4291]
[1646605508040,3.16000878,86.123,86.09,17.4291]
[1646605508240,6.35063959,86.129,86.09,17.4291]
[1646605508241,3.16000878,86.124,86.09,17.4291]
[1646605508544,3.16000878,86.123,86.09,17.4291]
[1646605509141,3.16000878,86.124,86.09,17.4291]
[1646605509343,1.58693252,86.099,86.09,17.4291]
[1646605509542,1.58693252,86.099,86.091,0.74868916]
[1646605510241,1.58693252,86.1,86.091,0.74868916]
[1646605512744,1.58693252,86.101,86.091,0.74868916]
[1646605513245,1.58693252,86.1,86.091,0.74868916]
[1646605514046,1.58693252,86.101,86.091,0.74868916]
[1646605516253,1.58693252,86.097,86.091,0.74868916]
[1646605516950,1.58693252,86.098,86.091,0.74868916]
[1646605517150,1.58693252,86.099,86.091,0.74868916]
[1646605518452,1.58693252,86.098,86.091,0.74868916]
[1646605520559,1.58693252,86.102,86.091,0.74868916]
[1646605520756,22.9376,86.143,86.091,0.74868916]
[1646605520757,1.58693252,86.107,86.091,0.74868916]
[1646605521278,1.58693252,86.108,86.091,0.74868916]
[1646605521462,1.58693252,86.108,86.092,23.0306]
[1646605521660,1.58693252,86.111,86.092,23.0306]
[1646605521961,1.58693252,86.114,86.092,31.4206]
[1646605522162,1.58693252,86.122,86.093,5.806]
[1646605522360,1.58693252,86.126,86.093,5.806]
[1646605522761,1.58693252,86.127,86.093,5.806]
[1646605522959,1.58693252,86.126,86.093,5.806]
[1646605523161,1.58693252,86.127,86.1,17.4263]
[1646605523361,1.58693252,86.127,86.101,5.806]
[1646605523762,1.58693252,86.135,86.101,5.806]
[1646605523965,1.58693252,86.135,86.102,23.0306]
[1646605524162,1.58693252,86.135,86.103,5.805]
[1646605524362,1.58693252,86.135,86.11,17.4229]
[1646605524562,1.58693252,86.136,86.11,25.2929]
[1646605525166,1.58693252,86.136,86.111,5.805]
[1646605525364,1.58693252,86.136,86.112,22.9506]
[1646605525564,1.58693252,86.136,86.113,5.805]
[1646605526164,1.58693252,86.137,86.12,17.4205]